[Event "Titled Tuesday Blitz April 26 Late 2022"]
[White "Andreikin, Dmitry"]
[Black "Drygalov, Andrey"]
[WhiteFideId "4158814"]
[BlackFideId "24171735"]
[WhiteElo "2736"]
[BlackElo "2540"]
[Result "1-0"]
[Round "07"]
[TimeControl "180+1"]
[Date "2022.04.26"]
[WhiteClock "0:00:28"]
[BlackClock "0:01:01"]

1. e4 {[%clk 0:03:00]}  c5 {[%clk 0:02:56]} 2. Nc3 {[%clk 0:03:00]}  d6 {[%clk 0:02:56]} 3. Nge2 {[%clk 0:03:00]}  Nf6 {[%clk 0:02:54]} 4. h3 {[%clk 0:03:00]}  a6 {[%clk 0:02:54]} 5. g4 {[%clk 0:03:00]}  b5 {[%clk 0:02:54]} 6. Bg2 {[%clk 0:02:59]}  Bb7 {[%clk 0:02:54]} 7. g5 {[%clk 0:02:57]}  Nfd7 {[%clk 0:02:54]} 8. h4 {[%clk 0:02:55]}  e5 {[%clk 0:02:51]} 9. d3 {[%clk 0:02:54]}  Be7 {[%clk 0:02:50]} 10. Nd5 {[%clk 0:02:51]}  Nc6 {[%clk 0:02:50]} 11. Ng3 {[%clk 0:02:41]}  g6 {[%clk 0:02:49]} 12. h5 {[%clk 0:02:41]}  Bxg5 {[%clk 0:02:39]} 13. hxg6 {[%clk 0:02:35]}  fxg6 {[%clk 0:02:39]} 14. Qg4 {[%clk 0:02:28]}  Bxc1 {[%clk 0:02:33]} 15. Qe6+ {[%clk 0:02:28]}  Ne7 {[%clk 0:02:31]} 16. Rxc1 {[%clk 0:02:13]}  h5 {[%clk 0:01:36]} 17. Nxe7 {[%clk 0:01:50]}  Qxe7 {[%clk 0:01:35]} 18. Qxg6+ {[%clk 0:01:50]}  Qf7 {[%clk 0:01:35]} 19. Qxd6 {[%clk 0:01:48]}  Rg8 {[%clk 0:01:29]} 20. Rxh5 {[%clk 0:01:35]}  Qg6 {[%clk 0:01:16]} 21. Qxg6+ {[%clk 0:01:16]}  Rxg6 {[%clk 0:01:17]} 22. Bh3 {[%clk 0:01:16]}  O-O-O {[%clk 0:01:12]} 23. Rxe5 {[%clk 0:01:14]}  Rh6 {[%clk 0:01:09]} 24. Rxc5+ {[%clk 0:01:09]}  Kb8 {[%clk 0:01:09]} 25. Bxd7 {[%clk 0:01:09]}  Rxd7 {[%clk 0:01:10]} 26. Rh5 {[%clk 0:01:06]}  Rf6 {[%clk 0:01:09]} 27. Rf5 {[%clk 0:01:03]}  Rg6 {[%clk 0:01:08]} 28. Ke2 {[%clk 0:01:03]}  Rh7 {[%clk 0:01:08]} 29. c4 {[%clk 0:00:55]}  b4 {[%clk 0:01:08]} 30. Ke3 {[%clk 0:00:47]}  Bc8 {[%clk 0:01:04]} 31. Rf8 {[%clk 0:00:46]}  Kb7 {[%clk 0:01:04]} 32. c5 {[%clk 0:00:46]}  Bd7 {[%clk 0:01:03]} 33. Rc4 {[%clk 0:00:44]}  a5 {[%clk 0:01:03]} 34. Rd4 {[%clk 0:00:44]}  Bb5 {[%clk 0:01:03]} 35. Rd6 {[%clk 0:00:42]}  Rxd6 {[%clk 0:01:00]} 36. cxd6 {[%clk 0:00:43]}  Kc6 {[%clk 0:00:57]} 37. Nf5 {[%clk 0:00:42]}  Kd7 {[%clk 0:00:52]} 38. Ra8 {[%clk 0:00:39]}  Rh3+ {[%clk 0:00:52]} 39. f3 {[%clk 0:00:38]}  Rh1 {[%clk 0:00:52]} 40. Rxa5 {[%clk 0:00:36]}  Bc6 {[%clk 0:00:52]} 41. Ra7+ {[%clk 0:00:36]}  Kd8 {[%clk 0:00:52]} 42. Nd4 {[%clk 0:00:34]}  Bd7 {[%clk 0:00:51]} 43. Ra8+ {[%clk 0:00:35]}  Bc8 {[%clk 0:00:52]} 44. Ne6+ {[%clk 0:00:33]}  Kd7 {[%clk 0:00:53]} 45. Nc5+ {[%clk 0:00:33]}  Kxd6 {[%clk 0:00:53]} 46. Rxc8 {[%clk 0:00:33]}  Rb1 {[%clk 0:00:54]} 47. b3 {[%clk 0:00:32]}  Rb2 {[%clk 0:00:54]} 48. Kd4 {[%clk 0:00:32]}  Rxa2 {[%clk 0:00:54]} 49. e5+ {[%clk 0:00:32]}  Ke7 {[%clk 0:00:55]} 50. Rc7+ {[%clk 0:00:32]}  Ke8 {[%clk 0:00:56]} 51. f4 {[%clk 0:00:31]}  Rf2 {[%clk 0:00:57]} 52. Ke4 {[%clk 0:00:29]}  Kd8 {[%clk 0:00:57]} 53. Rb7 {[%clk 0:00:28]}  Ke8 {[%clk 0:00:58]} 54. Rxb4 {[%clk 0:00:28]}  Ke7 {[%clk 0:00:58]} 55. Rb7+ {[%clk 0:00:28]}  Ke8 {[%clk 0:00:59]} 56. b4 {[%clk 0:00:29]}  Kf8 {[%clk 0:00:59]} 57. e6 {[%clk 0:00:29]}  Ke8 {[%clk 0:01:00]} 58. Ke5 {[%clk 0:00:29]}  Re2+ {[%clk 0:01:00]} 59. Kf6 {[%clk 0:00:29]}  Kd8 {[%clk 0:01:00]} 60. e7+ {[%clk 0:00:29]}  Kc8 {[%clk 0:01:01]} 61. Rd7 {[%clk 0:00:28]} 1-0


[Site "https://www.chess.com"]

[Event "Titled Tuesday Blitz April 26 Late 2022"]
[White "Aung Thant Zin"]
[Black "Vega Gutierrez, Sabrina"]
[WhiteFideId "13000063"]
[BlackFideId "2219026"]
[WhiteElo "2278"]
[BlackElo "2286"]
[Result "0-1"]
[Round "07"]
[TimeControl "180+1"]
[Date "2022.04.26"]
[WhiteClock "0:00:01"]
[BlackClock "0:01:13"]

1. e4 {[%clk 0:01:11]}  c5 {[%clk 0:02:58]} 2. Nf3 {[%clk 0:01:11]}  e6 {[%clk 0:02:56]} 3. d4 {[%clk 0:01:09]}  cxd4 {[%clk 0:02:56]} 4. Nxd4 {[%clk 0:01:09]}  Nf6 {[%clk 0:02:56]} 5. Nc3 {[%clk 0:01:10]}  Nc6 {[%clk 0:02:56]} 6. Nxc6 {[%clk 0:01:10]}  bxc6 {[%clk 0:02:56]} 7. e5 {[%clk 0:01:10]}  Nd5 {[%clk 0:02:55]} 8. Ne4 {[%clk 0:01:11]}  Qc7 {[%clk 0:02:55]} 9. c4 {[%clk 0:01:10]}  Qxe5 {[%clk 0:02:53]} 10. Qe2 {[%clk 0:01:06]}  Bb4+ {[%clk 0:02:52]} 11. Kd1 {[%clk 0:01:00]}  Nf6 {[%clk 0:02:35]} 12. f3 {[%clk 0:00:40]}  O-O {[%clk 0:02:08]} 13. a3 {[%clk 0:00:30]}  Be7 {[%clk 0:02:07]} 14. Bd2 {[%clk 0:00:23]}  d5 {[%clk 0:02:04]} 15. Bc3 {[%clk 0:00:21]}  Qf5 {[%clk 0:01:43]} 16. Ng3 {[%clk 0:00:18]}  Qf4 {[%clk 0:01:28]} 17. Be5 {[%clk 0:00:12]}  Qh4 {[%clk 0:01:21]} 18. Kc2 {[%clk 0:00:10]}  Ba6 {[%clk 0:01:20]} 19. b3 {[%clk 0:00:05]}  Nd7 {[%clk 0:01:16]} 20. Bb2 {[%clk 0:00:03]}  Bf6 {[%clk 0:01:15]} 21. Rc1 {[%clk 0:00:01]}  Rab8 {[%clk 0:01:13]} 0-1


[Site "https://www.chess.com"]

[Event "Titled Tuesday Blitz April 26 Late 2022"]
[White "Babazada, Khazar"]
[Black "Martinez Alcantara, Jose Eduardo"]
[WhiteFideId "13413554"]
[BlackFideId "3805662"]
[WhiteElo "2406"]
[BlackElo "2690"]
[Result "1-0"]
[Round "07"]
[TimeControl "180+1"]
[Date "2022.04.26"]
[WhiteClock "0:00:30"]
[BlackClock "0:00:14"]

1. Nf3 {[%clk 0:03:00]}  c5 {[%clk 0:02:59]} 2. g3 {[%clk 0:03:01]}  Nc6 {[%clk 0:03:00]} 3. d4 {[%clk 0:02:59]}  cxd4 {[%clk 0:03:01]} 4. Nxd4 {[%clk 0:02:58]}  g6 {[%clk 0:03:01]} 5. Bg2 {[%clk 0:02:57]}  Bg7 {[%clk 0:03:02]} 6. Nxc6 {[%clk 0:02:56]}  bxc6 {[%clk 0:03:01]} 7. c4 {[%clk 0:02:56]}  Nf6 {[%clk 0:02:57]} 8. O-O {[%clk 0:02:54]}  O-O {[%clk 0:02:54]} 9. Nc3 {[%clk 0:02:55]}  a5 {[%clk 0:02:49]} 10. c5 {[%clk 0:02:48]}  Ba6 {[%clk 0:02:22]} 11. Bf4 {[%clk 0:02:45]}  Qc8 {[%clk 0:02:07]} 12. Be5 {[%clk 0:02:22]}  Qb7 {[%clk 0:02:07]} 13. Qc2 {[%clk 0:02:15]}  Rfd8 {[%clk 0:01:56]} 14. Rad1 {[%clk 0:02:14]}  a4 {[%clk 0:01:34]} 15. Rd4 {[%clk 0:02:08]}  a3 {[%clk 0:01:33]} 16. b4 {[%clk 0:02:07]}  d6 {[%clk 0:01:25]} 17. cxd6 {[%clk 0:01:59]}  exd6 {[%clk 0:01:26]} 18. Rxd6 {[%clk 0:02:00]}  Rxd6 {[%clk 0:01:18]} 19. Bxd6 {[%clk 0:02:01]}  Bc4 {[%clk 0:01:18]} 20. Rd1 {[%clk 0:01:55]}  Rc8 {[%clk 0:01:06]} 21. Bc5 {[%clk 0:01:54]}  Qa6 {[%clk 0:01:03]} 22. Rd6 {[%clk 0:01:40]}  Ne8 {[%clk 0:00:59]} 23. Rd7 {[%clk 0:01:35]}  Be6 {[%clk 0:00:59]} 24. Ra7 {[%clk 0:01:24]}  Qc4 {[%clk 0:00:59]} 25. Rxa3 {[%clk 0:01:25]}  Nf6 {[%clk 0:00:39]} 26. Qd3 {[%clk 0:01:20]}  Qg4 {[%clk 0:00:39]} 27. h3 {[%clk 0:01:16]}  Qg5 {[%clk 0:00:38]} 28. Ra7 {[%clk 0:01:10]}  Qc1+ {[%clk 0:00:30]} 29. Kh2 {[%clk 0:01:10]}  Bf5 {[%clk 0:00:29]} 30. e4 {[%clk 0:01:05]}  Be6 {[%clk 0:00:29]} 31. Ne2 {[%clk 0:01:01]}  Qb2 {[%clk 0:00:22]} 32. Nf4 {[%clk 0:00:59]}  Bxa2 {[%clk 0:00:22]} 33. e5 {[%clk 0:00:49]}  Nd5 {[%clk 0:00:16]} 34. Nxd5 {[%clk 0:00:49]}  Bxd5 {[%clk 0:00:17]} 35. Bxd5 {[%clk 0:00:49]}  cxd5 {[%clk 0:00:18]} 36. Qxd5 {[%clk 0:00:50]}  Kh8 {[%clk 0:00:14]} 37. Ra8 {[%clk 0:00:30]} 1-0


[Site "https://www.chess.com"]

[Event "Titled Tuesday Blitz April 26 Late 2022"]
[White "Bortnyk, Olexandr"]
[Black "Oparin, Grigoriy"]
[WhiteFideId "14120828"]
[BlackFideId "24125890"]
[WhiteElo "2723"]
[BlackElo "2665"]
[Result "1-0"]
[Round "07"]
[TimeControl "180+1"]
[Date "2022.04.26"]
[WhiteClock "0:01:22"]
[BlackClock "0:00:01"]

1. d4 {[%clk 0:02:59]}  Nf6 {[%clk 0:03:00]} 2. Nc3 {[%clk 0:02:59]}  d5 {[%clk 0:03:00]} 3. Bf4 {[%clk 0:03:00]}  e6 {[%clk 0:03:01]} 4. Nb5 {[%clk 0:03:00]}  Na6 {[%clk 0:03:01]} 5. e3 {[%clk 0:03:00]}  Be7 {[%clk 0:03:01]} 6. Nf3 {[%clk 0:03:00]}  O-O {[%clk 0:03:02]} 7. Ne5 {[%clk 0:03:01]}  c6 {[%clk 0:02:56]} 8. Nc3 {[%clk 0:03:01]}  c5 {[%clk 0:02:56]} 9. Bxa6 {[%clk 0:03:00]}  bxa6 {[%clk 0:02:56]} 10. O-O {[%clk 0:03:00]}  Bb7 {[%clk 0:02:50]} 11. Na4 {[%clk 0:02:57]}  cxd4 {[%clk 0:02:35]} 12. exd4 {[%clk 0:02:58]}  Rc8 {[%clk 0:02:34]} 13. c3 {[%clk 0:02:56]}  Ne4 {[%clk 0:02:32]} 14. f3 {[%clk 0:02:54]}  Nf6 {[%clk 0:02:23]} 15. b4 {[%clk 0:02:54]}  Nd7 {[%clk 0:02:06]} 16. Nc5 {[%clk 0:02:51]}  Bxc5 {[%clk 0:02:00]} 17. bxc5 {[%clk 0:02:52]}  f6 {[%clk 0:01:56]} 18. Nxd7 {[%clk 0:02:47]}  Qxd7 {[%clk 0:01:57]} 19. Bd6 {[%clk 0:02:47]}  Rfe8 {[%clk 0:01:57]} 20. f4 {[%clk 0:02:47]}  Bc6 {[%clk 0:01:55]} 21. a4 {[%clk 0:02:47]}  a5 {[%clk 0:01:45]} 22. Qc2 {[%clk 0:02:43]}  Qf7 {[%clk 0:01:39]} 23. Rf3 {[%clk 0:02:43]}  Rcd8 {[%clk 0:01:30]} 24. Rh3 {[%clk 0:02:36]}  Qg6 {[%clk 0:01:30]} 25. Qe2 {[%clk 0:02:36]}  Rd7 {[%clk 0:01:01]} 26. Re3 {[%clk 0:02:33]}  Qf7 {[%clk 0:00:33]} 27. Qa6 {[%clk 0:02:31]}  Bb7 {[%clk 0:00:28]} 28. Qxa5 {[%clk 0:02:27]}  Bc8 {[%clk 0:00:23]} 29. Rae1 {[%clk 0:02:19]}  Rb7 {[%clk 0:00:22]} 30. c6 {[%clk 0:02:08]}  Rb2 {[%clk 0:00:22]} 31. Qxd5 {[%clk 0:02:07]}  h5 {[%clk 0:00:18]} 32. Qe4 {[%clk 0:02:01]}  h4 {[%clk 0:00:15]} 33. h3 {[%clk 0:02:01]}  Qh5 {[%clk 0:00:14]} 34. c4 {[%clk 0:01:57]}  Ba6 {[%clk 0:00:12]} 35. d5 {[%clk 0:01:55]}  Bc8 {[%clk 0:00:11]} 36. R3e2 {[%clk 0:01:48]}  Rxe2 {[%clk 0:00:10]} 37. Qxe2 {[%clk 0:01:49]}  Qf5 {[%clk 0:00:09]} 38. Bc5 {[%clk 0:01:36]}  Kf7 {[%clk 0:00:08]} 39. Qe3 {[%clk 0:01:29]}  e5 {[%clk 0:00:05]} 40. d6 {[%clk 0:01:29]}  e4 {[%clk 0:00:04]} 41. Rd1 {[%clk 0:01:24]}  Rd8 {[%clk 0:00:02]} 42. Bxa7 {[%clk 0:01:22]}  Kg6 {[%clk 0:00:01]} 43. Bb6 {[%clk 0:01:22]} 1-0


[Site "https://www.chess.com"]

[Event "Titled Tuesday Blitz April 26 Late 2022"]
[White "Brodowski, Piotr"]
[Black "Czopor, Maciej"]
[WhiteFideId "1124480"]
[BlackFideId "21805431"]
[WhiteElo "2422"]
[BlackElo "1999"]
[Result "1-0"]
[Round "07"]
[TimeControl "180+1"]
[Date "2022.04.26"]
[WhiteClock "0:00:14"]
[BlackClock "0:00:01"]

1. e4 {[%clk 0:03:00]}  c6 {[%clk 0:02:59]} 2. Nc3 {[%clk 0:02:59]}  d5 {[%clk 0:02:59]} 3. Nf3 {[%clk 0:03:00]}  Bg4 {[%clk 0:02:55]} 4. h3 {[%clk 0:03:00]}  Bxf3 {[%clk 0:02:55]} 5. Qxf3 {[%clk 0:02:59]}  e6 {[%clk 0:02:52]} 6. d3 {[%clk 0:02:58]}  Nd7 {[%clk 0:02:48]} 7. Bd2 {[%clk 0:02:53]}  Qb6 {[%clk 0:02:26]} 8. O-O-O {[%clk 0:02:43]}  d4 {[%clk 0:02:25]} 9. Ne2 {[%clk 0:02:43]}  a5 {[%clk 0:02:23]} 10. Qg3 {[%clk 0:02:19]}  Ngf6 {[%clk 0:02:18]} 11. f4 {[%clk 0:02:19]}  g6 {[%clk 0:01:57]} 12. Kb1 {[%clk 0:02:18]}  Bb4 {[%clk 0:01:55]} 13. Bc1 {[%clk 0:02:19]}  a4 {[%clk 0:01:55]} 14. Qf2 {[%clk 0:02:15]}  Bc5 {[%clk 0:01:40]} 15. g4 {[%clk 0:02:14]}  a3 {[%clk 0:01:40]} 16. b3 {[%clk 0:02:14]}  O-O-O {[%clk 0:01:31]} 17. Bg2 {[%clk 0:02:11]}  Nb8 {[%clk 0:01:24]} 18. f5 {[%clk 0:01:39]}  exf5 {[%clk 0:01:07]} 19. Rhf1 {[%clk 0:01:25]}  Be7 {[%clk 0:00:48]} 20. g5 {[%clk 0:01:13]}  Nh5 {[%clk 0:00:40]} 21. exf5 {[%clk 0:01:13]}  Na6 {[%clk 0:00:38]} 22. Bf3 {[%clk 0:01:09]}  Qc5 {[%clk 0:00:31]} 23. Bxh5 {[%clk 0:01:06]}  gxh5 {[%clk 0:00:32]} 24. Ng3 {[%clk 0:01:05]}  Rhe8 {[%clk 0:00:17]} 25. Ne4 {[%clk 0:01:02]}  Qd5 {[%clk 0:00:15]} 26. Qf3 {[%clk 0:00:40]}  h4 {[%clk 0:00:13]} 27. Qg4 {[%clk 0:00:40]}  Kb8 {[%clk 0:00:10]} 28. Qxh4 {[%clk 0:00:40]}  Nc5 {[%clk 0:00:05]} 29. Rde1 {[%clk 0:00:31]}  Nxe4 {[%clk 0:00:03]} 30. Rxe4 {[%clk 0:00:30]}  Bb4 {[%clk 0:00:02]} 31. Rf3 {[%clk 0:00:13]}  Rxe4 {[%clk 0:00:01]} 32. Qxe4 {[%clk 0:00:13]}  Qxe4 {[%clk 0:00:01]} 33. dxe4 {[%clk 0:00:14]}  Re8 {[%clk 0:00:01]} 34. Rf4 {[%clk 0:00:14]}  Bd6 {[%clk 0:00:01]} 35. Rh4 {[%clk 0:00:14]} 1-0


[Site "https://www.chess.com"]

[Event "Titled Tuesday Blitz April 26 Late 2022"]
[White "Burke, Paul"]
[Black "Aigner, Michael"]
[WhiteFideId "2605767"]
[BlackFideId "2017288"]
[WhiteElo "1886"]
[BlackElo "2391"]
[Result "1/2-1/2"]
[Round "07"]
[TimeControl "180+1"]
[Date "2022.04.26"]
[WhiteClock "0:01:45"]
[BlackClock "0:01:54"]

1. e4 {[%clk 0:03:00]}  c5 {[%clk 0:02:59]} 2. d4 {[%clk 0:02:59]}  cxd4 {[%clk 0:02:58]} 3. c3 {[%clk 0:02:59]}  Nf6 {[%clk 0:02:57]} 4. Bd3 {[%clk 0:02:57]}  d5 {[%clk 0:02:55]} 5. e5 {[%clk 0:02:56]}  Ne4 {[%clk 0:02:52]} 6. Bxe4 {[%clk 0:02:56]}  dxe4 {[%clk 0:02:52]} 7. cxd4 {[%clk 0:02:56]}  Nc6 {[%clk 0:02:51]} 8. Ne2 {[%clk 0:02:56]}  Bg4 {[%clk 0:02:46]} 9. Nbc3 {[%clk 0:02:49]}  Bxe2 {[%clk 0:02:34]} 10. Nxe2 {[%clk 0:02:48]}  Qd5 {[%clk 0:02:29]} 11. O-O {[%clk 0:02:45]}  Rd8 {[%clk 0:02:28]} 12. Be3 {[%clk 0:02:45]}  e6 {[%clk 0:02:28]} 13. Nc3 {[%clk 0:02:43]}  Qd7 {[%clk 0:02:24]} 14. Nxe4 {[%clk 0:02:18]}  Nxd4 {[%clk 0:02:23]} 15. Bxd4 {[%clk 0:02:05]}  Qxd4 {[%clk 0:02:22]} 16. Nd6+ {[%clk 0:02:04]}  Rxd6 {[%clk 0:02:16]} 17. exd6 {[%clk 0:02:04]}  Qxd6 {[%clk 0:02:14]} 18. Qxd6 {[%clk 0:02:04]}  Bxd6 {[%clk 0:02:15]} 19. Rfd1 {[%clk 0:02:03]}  Ke7 {[%clk 0:02:15]} 20. Kf1 {[%clk 0:01:59]}  Rd8 {[%clk 0:02:13]} 21. g3 {[%clk 0:01:55]}  h5 {[%clk 0:02:10]} 22. Ke2 {[%clk 0:01:54]}  g6 {[%clk 0:02:09]} 23. Rd2 {[%clk 0:01:53]}  a6 {[%clk 0:02:02]} 24. Rad1 {[%clk 0:01:53]}  Rd7 {[%clk 0:01:58]} 25. f4 {[%clk 0:01:49]}  Rd8 {[%clk 0:01:54]} 26. Kf3 {[%clk 0:01:48]}  Rd7 {[%clk 0:01:54]} 27. Ke4 {[%clk 0:01:48]}  Rd8 {[%clk 0:01:54]} 28. Kf3 {[%clk 0:01:45]}  Rd7 {[%clk 0:01:53]} 29. Ke4 {[%clk 0:01:45]}  Rd8 {[%clk 0:01:54]} 30. Kf3 {[%clk 0:01:45]} 1/2-1/2


[Site "https://www.chess.com"]

[Event "Titled Tuesday Blitz April 26 Late 2022"]
[White "Fedoseev, Vladimir"]
[Black "Kollars, Dmitrij"]
[WhiteFideId "24130737"]
[BlackFideId "12909572"]
[WhiteElo "2726"]
[BlackElo "2584"]
[Result "0-1"]
[Round "07"]
[TimeControl "180+1"]
[Date "2022.04.26"]
[WhiteClock "0:00:01"]
[BlackClock "0:00:15"]

1. e4 {[%clk 0:01:58]}  e5 {[%clk 0:02:58]} 2. Nf3 {[%clk 0:01:55]}  Nc6 {[%clk 0:02:58]} 3. Bb5 {[%clk 0:01:55]}  a6 {[%clk 0:02:58]} 4. Ba4 {[%clk 0:01:55]}  Nf6 {[%clk 0:02:58]} 5. d3 {[%clk 0:01:56]}  d6 {[%clk 0:02:48]} 6. h3 {[%clk 0:01:51]}  b5 {[%clk 0:02:47]} 7. Bb3 {[%clk 0:01:50]}  Na5 {[%clk 0:02:48]} 8. Nc3 {[%clk 0:01:49]}  Be7 {[%clk 0:02:45]} 9. O-O {[%clk 0:01:49]}  O-O {[%clk 0:02:45]} 10. Bd2 {[%clk 0:01:47]}  c5 {[%clk 0:02:27]} 11. Nd5 {[%clk 0:01:46]}  Nxb3 {[%clk 0:02:27]} 12. Nxe7+ {[%clk 0:01:46]}  Qxe7 {[%clk 0:02:28]} 13. axb3 {[%clk 0:01:46]}  h6 {[%clk 0:02:17]} 14. Qe2 {[%clk 0:01:34]}  Be6 {[%clk 0:02:16]} 15. Nh2 {[%clk 0:01:31]}  Nd7 {[%clk 0:02:01]} 16. f4 {[%clk 0:01:31]}  exf4 {[%clk 0:02:01]} 17. Rxf4 {[%clk 0:01:30]}  Ne5 {[%clk 0:01:56]} 18. Raf1 {[%clk 0:01:28]}  f6 {[%clk 0:01:53]} 19. b4 {[%clk 0:01:19]}  Rae8 {[%clk 0:01:41]} 20. bxc5 {[%clk 0:01:15]}  dxc5 {[%clk 0:01:42]} 21. Bc3 {[%clk 0:01:15]}  a5 {[%clk 0:01:15]} 22. Bxe5 {[%clk 0:01:01]}  fxe5 {[%clk 0:01:16]} 23. Rxf8+ {[%clk 0:01:01]}  Rxf8 {[%clk 0:01:17]} 24. Nf3 {[%clk 0:01:01]}  Qd6 {[%clk 0:01:10]} 25. Qd2 {[%clk 0:00:51]}  a4 {[%clk 0:01:05]} 26. Qa5 {[%clk 0:00:50]}  Bd7 {[%clk 0:00:52]} 27. Qc3 {[%clk 0:00:12]}  Re8 {[%clk 0:00:43]} 28. b3 {[%clk 0:00:11]}  b4 {[%clk 0:00:39]} 29. Qc4+ {[%clk 0:00:10]}  Be6 {[%clk 0:00:39]} 30. Qb5 {[%clk 0:00:10]}  Bd7 {[%clk 0:00:37]} 31. Qb7 {[%clk 0:00:10]}  a3 {[%clk 0:00:30]} 32. Nd2 {[%clk 0:00:10]}  Be6 {[%clk 0:00:26]} 33. Kh2 {[%clk 0:00:05]}  Rf8 {[%clk 0:00:24]} 34. Nf3 {[%clk 0:00:04]}  Rf7 {[%clk 0:00:19]} 35. Qa8+ {[%clk 0:00:03]}  Kh7 {[%clk 0:00:20]} 36. Qa5 {[%clk 0:00:03]}  Rf6 {[%clk 0:00:18]} 37. Qa8 {[%clk 0:00:03]}  Bf7 {[%clk 0:00:16]} 38. Qa7 {[%clk 0:00:03]}  Bh5 {[%clk 0:00:16]} 39. g4 {[%clk 0:00:02]}  Bf7 {[%clk 0:00:15]} 40. Kg2 {[%clk 0:00:03]}  Rf4 {[%clk 0:00:14]} 41. Rf2 {[%clk 0:00:01]}  h5 {[%clk 0:00:15]} 0-1


[Site "https://www.chess.com"]

[Event "Titled Tuesday Blitz April 26 Late 2022"]
[White "Fiorito, Fabian"]
[Black "Tregubov, Pavel V."]
[WhiteFideId "100200"]
[BlackFideId "4115341"]
[WhiteElo "2395"]
[BlackElo "2341"]
[Result "1/2-1/2"]
[Round "07"]
[TimeControl "180+1"]
[Date "2022.04.26"]
[WhiteClock "0:00:09"]
[BlackClock "0:00:08"]

1. e4 {[%clk 0:03:00]}  e5 {[%clk 0:02:58]} 2. Nf3 {[%clk 0:03:00]}  Nf6 {[%clk 0:02:58]} 3. Nc3 {[%clk 0:03:00]}  Nc6 {[%clk 0:02:57]} 4. d4 {[%clk 0:03:00]}  exd4 {[%clk 0:02:56]} 5. Nxd4 {[%clk 0:03:01]}  Bb4 {[%clk 0:02:56]} 6. Nxc6 {[%clk 0:03:01]}  bxc6 {[%clk 0:02:56]} 7. Bd3 {[%clk 0:03:01]}  d5 {[%clk 0:02:56]} 8. Bd2 {[%clk 0:03:01]}  O-O {[%clk 0:02:55]} 9. O-O {[%clk 0:03:01]}  Re8 {[%clk 0:02:54]} 10. Nxd5 {[%clk 0:03:00]}  Nxd5 {[%clk 0:02:45]} 11. exd5 {[%clk 0:02:59]}  Bxd2 {[%clk 0:02:45]} 12. Qxd2 {[%clk 0:02:58]}  cxd5 {[%clk 0:02:44]} 13. Rae1 {[%clk 0:02:56]}  Bb7 {[%clk 0:02:38]} 14. Qb4 {[%clk 0:02:52]}  Rb8 {[%clk 0:02:32]} 15. Qd4 {[%clk 0:02:51]}  a6 {[%clk 0:02:18]} 16. b4 {[%clk 0:02:45]}  Qd6 {[%clk 0:02:14]} 17. c3 {[%clk 0:02:41]}  g6 {[%clk 0:02:14]} 18. h3 {[%clk 0:02:37]}  Qb6 {[%clk 0:02:08]} 19. a3 {[%clk 0:02:24]}  a5 {[%clk 0:01:54]} 20. Rb1 {[%clk 0:02:11]}  Qxd4 {[%clk 0:01:33]} 21. cxd4 {[%clk 0:02:10]}  axb4 {[%clk 0:01:33]} 22. Rxb4 {[%clk 0:02:07]}  Bc6 {[%clk 0:01:28]} 23. Rc1 {[%clk 0:02:06]}  Rxb4 {[%clk 0:01:16]} 24. axb4 {[%clk 0:02:07]}  Ba4 {[%clk 0:01:17]} 25. Rxc7 {[%clk 0:01:58]}  Rb8 {[%clk 0:01:16]} 26. Rc5 {[%clk 0:01:54]}  Rxb4 {[%clk 0:01:13]} 27. Rxd5 {[%clk 0:01:54]}  Kf8 {[%clk 0:01:10]} 28. f3 {[%clk 0:01:31]}  Ke7 {[%clk 0:01:09]} 29. Kf2 {[%clk 0:01:26]}  Bc6 {[%clk 0:01:09]} 30. Re5+ {[%clk 0:01:25]}  Kd6 {[%clk 0:01:00]} 31. Ke3 {[%clk 0:01:24]}  Rb2 {[%clk 0:01:00]} 32. Be2 {[%clk 0:01:22]}  Bd5 {[%clk 0:00:55]} 33. Re8 {[%clk 0:01:18]}  Be6 {[%clk 0:00:49]} 34. g4 {[%clk 0:01:15]}  Rb3+ {[%clk 0:00:44]} 35. Kf2 {[%clk 0:01:12]}  Rb2 {[%clk 0:00:44]} 36. Ke3 {[%clk 0:00:53]}  Rb3+ {[%clk 0:00:44]} 37. Kf4 {[%clk 0:00:52]}  Rb4 {[%clk 0:00:39]} 38. Kg5 {[%clk 0:00:37]}  Rxd4 {[%clk 0:00:33]} 39. Kh6 {[%clk 0:00:35]}  Ra4 {[%clk 0:00:20]} 40. Rd8+ {[%clk 0:00:19]}  Ke5 {[%clk 0:00:20]} 41. Rd2 {[%clk 0:00:17]}  Kf4 {[%clk 0:00:19]} 42. h4 {[%clk 0:00:16]}  Kg3 {[%clk 0:00:14]} 43. h5 {[%clk 0:00:16]}  gxh5 {[%clk 0:00:14]} 44. Kxh5 {[%clk 0:00:17]}  f5 {[%clk 0:00:12]} 45. Rd6 {[%clk 0:00:14]}  fxg4 {[%clk 0:00:09]} 46. Rxe6 {[%clk 0:00:10]}  Ra5+ {[%clk 0:00:09]} 47. Kh6 {[%clk 0:00:09]}  gxf3 {[%clk 0:00:09]} 48. Bxf3 {[%clk 0:00:09]}  Kxf3 {[%clk 0:00:08]} 49. Kxh7 {[%clk 0:00:09]}  Kf4 {[%clk 0:00:08]} 50. Rh6 {[%clk 0:00:09]}  Rg5 {[%clk 0:00:08]} 51. Ra6 {[%clk 0:00:08]}  Kg4 {[%clk 0:00:07]} 52. Ra4+ {[%clk 0:00:08]}  Kf5 {[%clk 0:00:07]} 53. Ra5+ {[%clk 0:00:08]}  Kf4 {[%clk 0:00:07]} 54. Rxg5 {[%clk 0:00:09]}  Kxg5 {[%clk 0:00:08]} 1/2-1/2


[Site "https://www.chess.com"]